Cogmind - Beta 15 @@@ ROGUE MODE // 2025.05.13 @ 22:34:31 Player: Kazimir57 Result: Destroyed by G-34 Mercenary with Small Laser Performance ------------- Evolutions (0) 0 Regions Visited (1) 200 Robots Destroyed (4) 20 Value Destroyed (87) 87 Prototype IDs (0) 0 Alien Tech Used (0) 0 Bonus (0) 0 TOTAL SCORE: 307 Bonus ------- None Cogmind --------- Core Integrity 0/250 Matter 260/300 Energy 62/100 System Corruption 0% Temperature Warning (395) Movement Treading (160) Location -10/Materials Parts ------- > --- POWER (1) -------- (None) > --- PROPULSION (2) --- Light Treads > --- UTILITY (2) ------ Small Storage Unit > --- WEAPON (2) ------- Particle Gun > --- INVENTORY (8) ---- Light Ion Engine Light Treads Wheel Compact Wheel Peak State ------------ > --- POWER ------------ Ion Engine > --- PROPULSION ------- Aluminum Leg Aluminum Leg > --- UTILITY ---------- Small Storage Unit > --- WEAPON ----------- Medium Laser Light Assault Rifle > --- INVENTORY -------- Ion Engine Light Treads Light Treads Wheel Compact Wheel EM Pulse Gun [Rating: 6] Favorites ----------- Power Ion Engine Engine Ion Engine Propulsion Aluminum Leg Treads Light Treads Leg Aluminum Leg Utility Small Storage Unit Storage Small Storage Unit Weapon Light Assault Rifle Energy Gun Medium Laser Ballistic Gun Light Assault Rifle Build | -11 -10 ------- Run | Yrd Mat Slots Evolved . | . . Power . | . . Propulsion . | . . Utility . | . . Weapon . | . . Parts Attached 10 | 5 5 Power 2 | 1 1 Engine 2 | 1 1 Core . | . . Reactor . | . . Propulsion 3 | 2 1 Treads 1 | . 1 Leg 2 | 2 . Wheel . | . . Hover . | . . Flight . | . . Utility 1 | 1 . Device . | . . Storage 1 | 1 . Processor . | . . Hackware . | . . Protection . | . . Artifact . | . . Weapon 4 | 1 3 Energy Gun 3 | . 3 Energy Cannon . | . . Ballistic Gun 1 | 1 . Ballistic Cannon . | . . Launcher . | . . Special Weapon . | . . Impact Weapon . | . . Slashing Weapon . | . . Piercing Weapon . | . . Special Melee Weapon . | . . Unidentified Prototypes . | . . Parts Lost 7 | . 7 Power 2 | . 2 Propulsion 2 | . 2 Utility . | . . Weapon 3 | . 3 Highest Loss Streak 7 | . 7 To Critical Strikes . | . . Average Backups 5 | 4 5 Power . | . . Propulsion 3 | 2 3 Utility . | . . Weapon 1 | 1 1 Tool/Special . | . . Unused Backups 3 | . 3 Power . | . . Propulsion 3 | . 3 Utility . | . . Weapon . | . . Tool/Special . | . . Average Slot Usage (%) 78 | . 78 Engine 13 | . 13 Treads 2 | . 2 Leg 23 | . 23 Storage 14 | . 14 Energy Gun 12 | . 12 Ballistic Gun 12 | . 12 Peak Build Rating 6 | 5 6 Average Rating 5 | 4 5 On Entrance 2 | . 5 Naked Turns . | . . Heaviest Build 13 | 11 13 Greatest Support 20 | 20 20 Greatest Overweight (x) . | . . Average Overweight (x) . | . . Largest Inventory Capacity 8 | 8 8 Average Capacity 7 | 7 8 Most Carried 7 | 7 7 Average Carried 5 | 4 5 Final Capacity 8 | 8 8 Final Carried 7 | 7 4 Class Distribution -------------------- 100% | Mutant Dominant Class ---------------- Mutant | -10/Materials Resources | -11 -10 ----------- Run | Yrd Mat Matter Collected 263 | 198 65 Remotely . | . . Salvage Created 77 | . 77 Parts 7 | . 7 Haulers Intercepted . | . . Recyclers Shooed . | . . Parts Field Recycled . | . . Retrieved Matter . | . . Parts Self-Destructed . | . . Prevented . | . . Kills | -11 -10 ------- Run | Yrd Mat Combat Hostiles Destroyed 4 | . 4 Guns 4 | . 4 Classes Destroyed 2 | . 2 Swarmer 3 | . 3 Grunt 1 | . 1 Best Kill Streak 4 | . 4 Combat Bots Only 4 | . 4 Max Kills in Single Turn 1 | . 1 Gunslinging . | . . Exploded . | . . Melee . | . . Uniques/NPCs Destroyed . | . . Combat | -11 -10 -------- Run | Yrd Mat Hostile Shots Fired 95 | . 95 Missed 20 | . 20 Hits 75 | . 75 Projectile 75 | . 75 Critical Strikes 2 | . 2 Damage Taken 949 | . 949 Core 255 | . 255 Absorbed by Shields . | . . Core Remaining (%) 100 | 100 . Volleys Fired 25 | . 25 Largest 2 | . 2 Hottest 105 | . 105 Shots Fired 45 | . 45 Gun 45 | . 45 Cannon . | . . Launcher . | . . Special . | . . Kinetic 18 | . 18 Thermal 17 | . 17 Explosive . | . . Electromagnetic 10 | . 10 Robot Hit Streak 9 | . 9 Robot Miss Streak 2 | . 2 Penetration Max . | . . Secondary Targets 1 | . 1 Max Gunslinging Chain 1 | . 1 Shots Hit Robots 21 | . 21 Core Hits 10 | . 10 Critical Kills . | . . Critical Parts Destroyed . | . . Critical Strikes . | . . Melee Attacks . | . . Impact . | . . Slashing . | . . Piercing . | . . Sneak Attacks . | . . Combat Hostiles . | . . Follow-up Attacks . | . . Damage Inflicted 209 | . 209 Guns 209 | . 209 Cannons . | . . Explosions . | . . Melee . | . . Ramming . | . . Kinetic 97 | . 97 Thermal 100 | . 100 Explosive . | . . Electromagnetic 12 | . 12 Impact . | . . Slashing . | . . Piercing . | . . Highest Corruption . | . . Average Corruption . | . . Corruption Purged . | . . Corruption Blocked . | . . Overload Shots . | . . Overflow Damage . | . . Projectiles . | . . Explosions . | . . Melee . | . . Knockbacks . | . . Impact . | . . Kinetic . | . . Secondary . | . . Self-Inflicted Damage . | . . Shots . | . . Rammed . | . . Targets Rammed . | . . Kicked . | . . Crushed . | . . Highest Temperature 380 | . 380 Average Temperature 130 | . 130 Received Heat Transfer 540 | . 540 Siege Activations . | . . Martial Activations . | . . Shielding Activations . | . . Robots Disrupted . | . . Combat Hostiles . | . . Robots Corrupted . | . . Combat Hostiles . | . . Parts Fried . | . . Impact Corruptions . | . . Robots Melted . | . . Combat Hostiles . | . . Parts Melted . | . . Heat Transferred 296 | . 296 Parts Sabotaged . | . . Parts Stolen . | . . Parts Stripped . | . . Power Chain Reactions . | . . Alert | -11 -10 ------- Run | Yrd Mat Maximum Alert Level . | . . Low Security (%) 100 | 100 100 Level 1 . | . . Level 2 . | . . Level 3 . | . . Level 4 . | . . Level 5 . | . . High Security . | . . Max Security . | . . Peak Influence 125 | . 125 Initial . | . . Average 17 | . 22 Influence Increases 160 | . 160 Destroy 0b10 Robot/C 80 | . 80 Destroy Leader 20 | . 20 Disable Machine 15 | . 15 Lose Combat Pursuer 45 | . 45 Influence Decreases 120 | . 120 Time Decay 50 | . 50 Lost Part 70 | . 70 Squads Dispatched 1 | . 1 Investigation . | . . Extermination . | . . Reinforcement 1 | . 1 Assault . | . . Garrison . | . . Intercept . | . . Searches Triggered . | . . Construction Impeded . | . . Haulers Reinforced . | . . Active Scanning Responses . | . . Cargo Convoy Interrupts . | . . Stealth | -11 -10 --------- Run | Yrd Mat Distress Signals . | . . Communications Jammed . | . . Distress Signals . | . . Times Spotted 11 | . 11 Peak Tracking Total 9 | . 9 Tactical Retreats 2 | . 2 Traps | -11 -10 ------- Run | Yrd Mat Traps Triggered 1 | . 1 Indirectly . | . . Trap Hack Attempts . | . . Triggered . | . . Disarmed . | . . Reprogrammed . | . . Reused . | . . Traps Extracted . | . . Installed . | . . Triggered . | . . Machines | -11 -10 ---------- Run | Yrd Mat Machines Disabled 1 | . 1 Max in Single Turn 1 | . 1 Machines Repaired . | . . Machines Dismantled . | . . Machines Sabotaged . | . . Overloaded Fab Kills . | . . Hacking | -11 -10 --------- Run | Yrd Mat Machines Accessed 2 | . 2 Terminals 1 | . 1 Fabricators . | . . Repair Stations . | . . Recycling Units 1 | . 1 Scanalyzers . | . . Garrison Access . | . . Total Hacks 5 | . 5 Successful 2 | . 2 Failed 3 | . 3 Catastrophic 1 | . 1 Database Lockouts . | . . Manual . | . . Terminals 3 | . 3 Fabricators . | . . Repair Stations . | . . Recycling Units 2 | . 2 Scanalyzers . | . . Garrison Access . | . . Terminal Hacks . | . . Fabricator Hacks . | . . Repair Station Hacks . | . . Recycling Unit Hacks 2 | . 2 Process 1 | . 1 Retrieve Components 1 | . 1 Scanalyzer . | . . Garrison Access Hacks . | . . Unauthorized Hacks . | . . Terminals . | . . Fabricators . | . . Repair Stations . | . . Recycling Units . | . . Scanalyzers . | . . Garrison Access . | . . Data Cores Recovered . | . . Used . | . . Hacking Detections 1 | . 1 Full Trace Events 1 | . 1 Feedback Events . | . . Feedback Blocked . | . . Robot Schematics Acquired . | . . Robots Built . | . . Authchips . | . . Time . | . . Total Robot Build Rating . | . . Part Schematics Acquired . | . . Parts Built . | . . Authchips . | . . Time . | . . Total Part Build Rating . | . . Parts Repaired . | . . Time . | . . Parts Recycled . | . . Recycled Matter 8 | . 8 Retrieved Matter . | . . Retrieved Components . | . . Parts Scanalyzed . | . . Part Schematics Acquired . | . . Parts Damaged . | . . Bothacking | -11 -10 ------------ Run | Yrd Mat Used RIF Installer . | . . Robots Hacked . | . . Non-combat . | . . Combat . | . . Robot Hacks Applied . | . . Relay Couplers Released . | . . Fabnet Peak Effective % . | . . Robots Rewired . | . . Allies Hacked . | . . Hacks Repelled . | . . Allies | -11 -10 -------- Run | Yrd Mat Total Allies . | . . Largest Group . | . . Highest-Rated Group . | . . Highest-Rated Ally . | . . Total Orders . | . . Ally Attacks . | . . Total Damage . | . . Kills . | . . Allies Corrupted . | . . Allies Melted . | . . Intel | -11 -10 ------- Run | Yrd Mat Active Infowar (turns) . | . . Robot Analysis Total . | . . Derelict Logs Recovered . | . . Drone Launches . | . . Drone Recoveries . | . . Exploration | -11 -10 ------------- Run | Yrd Mat Turns Passed 339 | 75 264 Spaces Moved 205 | 53 152 Core 4 | 4 . Treads 5 | . 5 Legs 196 | 49 147 Wheels . | . . Hover . | . . Flight . | . . Fastest Speed 50 | 50 120 Average Speed 119 | 114 121 Slowest Speed 160 | 120 160 Overloaded Moves . | . . Propulsion Burnouts . | . . Robots Hopped . | . . Potential Cave-ins . | . . Cave-ins Triggered . | . . Exploration Rate (%) 16 | 4 28 Regions Visited 1 Branch Regions . Pre-discovered Areas . | . . Known Exits Taken . | . . Unknown Exits Taken 1 | 1 . Scrap Searched . | . . Spaces Dug . | . . Terrain Destroyed . | . . Melee . | . . Projectile . | . . AOE . | . . Terrain Rammed . | . . Walls Destroyed . | . . Machines Disabled . | . . Actions | -11 -10 --------- Run | Yrd Mat Total 253 | 64 189 Wait 4 | . 4 Move 204 | 52 152 Hop . | . . Pick Up 8 | 7 1 Fast Attach 8 | 5 3 Attach 4 | . 4 Detach . | . . Swap . | . . Drop . | . . Fire 25 | . 25 Melee . | . . Ram . | . . Kick . | . . Crush . | . . Escape Stasis . | . . Rewire . | . . Trap . | . . Miscellaneous . | . . Route ------- -11/Scrapyard -10/Materials History --------- Turn | Location | Event 6 | -11/Scrapyard | Discovered new exit (range 15) 76 | -11/Scrapyard | Entered Materials 298 | -10/Materials | Core integrity fell below 50% 333 | -10/Materials | Core integrity fell below 20% 340 | -10/Materials | Destroyed by G-34 Mercenary with Small Laser Last Messages --------------- 00260_ K-01 Serf collects debris. 00275_ S-10 Pest destroyed. 00279_ Electrolysis Chamber disabled. 00280_ S-10 Pest destroyed. 00280_ Switching to secondary target: G-47 Trooper. 00289_ G-47 Trooper destroyed. 00291_ Med. Laser destroyed. 00291_ Critical hit (Burn: +37). 00297_ Ion Engine destroyed. 00299_ Aluminum Leg destroyed. 00302_ Electrolysis Chamber disabled. 00305_ Aluminum Leg destroyed. 00309_ Lgt. Assault Rifle destroyed. 00312_ Acquired 13 matter. 00314_ Acquired 52 matter. 00319_ Acquired Lgt. Ion Engine. 00321_ Acquired Particle Gun. 00330_ Ion Engine destroyed. 00340_ EM Pulse Gun destroyed. Map ----- +----------------------------------------------------+ | ?????????????????????????????????????????????????? | | ?????????????????????????????????????????????????? | | ?????????????????????????????????????????????????? | | #######??????????????????????????????????????????? | | #??????????????????????????????????????????? | | #??????????????????????????????????????????? | | """ #?##########???????????????????????????????? | | """" # ????????????????????????????? | | """" + ?????????????????????????? | | """" # ?????????????????????????? | | """ #?? #######/#?? ?? ?????????????????????? | | #?????????????? ?? ?????????????????????? | | #?????????????# "" ??????????????????????? | | +######?????????????# "T ??????????????????????? | | ######## #?????????# "" ???????????????????????? | | #?????????# ???????????????????????? | | ##### #?????????# ????????????????????????? | | #???????????????# #????????????????????????? | | #???????????????# #????????????????????????? | | # #??#???????????# #????????????????????????? | | # #??# ??????????# +????????????????????????? | | # #??# ??????????# #????????????????????????? | | ########+########### #????????????????????????? | | # # + #????????????????????????? | | #! # " ######/####??????????????????????? | | # # T # g @#??????????????????????? | | # # """ " # g = #??????????????????????? | | + # """ # """ "" =#??????????????????????? | | # "" # """ # """ """g#??????????????????????? | | # Y" # # " #??????????????????????? | | # "" # # =% =#??????????????????????? | | # ##+####/### = #??????????????????????? | | ####### ## # #??????????????????????? | | #?????# ## ###########??????????????????????? | | +####### ## " ###### #??????????????????????? | | ## ## / #??????????????????????? | | ## ## ###### #??????????????????????? | | # ##????????????????????????????????? | | # #?????????????????????????????????? | | # #?????????????????????????????????? | | # #?????????????????????????????????? | | ##+#+## #?????????????????????????????????? | | ?# #?????????????????????????????????? | | ?# +?????????????????????????????????? | | ?# #?????????????????????????????????? | | ?## #?????????????????????????????????? | | ??# " " #?????????????????????????????????? | | ??# """ """ #####?????????????????????????????? | | ??# "" "" #?????????????????????????????? | | ??# """ """ #?????????????????????????????? | +----------------------------------------------------+ Best States ------------- Heat Dissipation 25 Energy Generation 10 Energy Capacity 250 Matter Stores 260 Matter Capacity 300 Sight Range 16 Terrain Scan Density 10 Evasion (%) 55 Recoil Reduction 1 Item Schematics ----------------- None Robot Schematics ------------------ None Fabricated ------------ Nothing Repaired ---------- Nothing Alien Tech Used ----------------- None Achievements -------------- None Challenges ------------ None Game ------ Seed NetworkedRestorationKit Manual? 0 Play Time 00:06:22 Cumulative 7.9 hours Start 2025.05.13 @ 22:30:57 End 2025.05.13 @ 22:34:31 Sessions 1 Manual Loads 0 Difficulty Rogue Special Mode None Game No. 16 Rogue 16 Adventurer 0 Explorer 0 Win Type - Total 0 Types 0/0/0/0/0/0/0/0/0/0 Lore% 5 Gallery% 14 Achievement% 13 Wizard Run 0 Options --------- Layout 1 ASCII 0 Keyboard 0 Movement Mouse Keybinds 0 Fullscreen 1 Font 24/Smallcaps Map View 50x35 Zoom Use 0% Tactical HUD 1 Map Filters NONE Filters NONE Steam 1 RUN: dd3770ac-2559-4557-b278-cff612cdc8cc